Workbook

Sheet Analysis
N2: Enter projected statewide job loss estimate--> | P2: 603741
B3: Employment levels (in thousands) | H3: County employment shares of state total | N3: =CONCATENATE("Projected job loss (",$P$2/1000000," million total)") -> Projected job loss (0.603741 million total)
N4: (1) | O4: (2) | P4: (3)
B5: Total nonfarm | C5: Total private sector | D5: Leisure and hospitality | E5: Retail | F5: Leisure & hosp. + retail | H5: Total nonfarm | I5: Total private sector | J5: Leisure and hospitality | K5: Retail | L5: Leisure & hosp. + retail | N5: Based on state share of total private employment | O5: Based on state share of leisure, hospitality, and retail employment | P5: Average of columns (1) and (2) | Q5: Leisure, hospitality and retail as a share of total private sector employment | R5: Projected job loss as a share of total private sector employment
A6: California | B6: 17425.1 | C6: 14817.1 | D6: 2033.2 | E6: 1657.6 | F6: 3690.8 | H6: =B6/B$6 -> 1 | I6: =C6/C$6 -> 1 | J6: 1 | K6: 1 | L6: 1 | N6: =$P$2 -> 603741 | O6: =$P$2 -> 603741 | P6: =$P$2 -> 603741 | Q6: =$F6/$C6 -> 0.2490905778 | R6: =P6/($C6*1000) -> 0.04074623239
A7: Los Angeles County | B7: 4566.933333 | C7: 3972.708333 | D7: 544.65 | E7: 417.25 | F7: =SUM(D7:E7) -> 961.9 | H7: =B7/B$6 -> 0.2620893615 | I7: 0.2681164555 | J7: 0.2678782215 | K7: 0.2517193533 | L7: 0.2606210036 | N7: =N$6*$I7 -> 161872.897 | O7: =O$6*$L7 -> 157347.5853 | P7: =AVERAGE(N7:O7) -> 159610.2412 | Q7: =$F7/$C7 -> 0.2421270124 | R7: 0.04017668244
A8: Orange County | B8: 1672.525 | C8: 1509.583333 | D8: 228.025 | E8: 150.5 | F8: 378.525 | H8: 0.09598366724 | I8: 0.1018811598 | J8: 0.1121507968 | K8: 0.09079391892 | L8: 0.1025590658 | N8: =N$6*$I8 -> 61509.83332 | O8: =O$6*$L8 -> 61919.11294 | P8: =AVERAGE(N8:O8) -> 61714.47313 | Q8: =$F8/$C8 -> 0.2507479989 | R8: 0.04088179285
A9: San Diego County | B9: 1503.858333 | C9: 1254.233333 | D9: 202.4416667 | E9: 145.4 | F9: 347.8416667 | H9: 0.08630414364 | I9: 0.08464769309 | J9: 0.09956800446 | K9: 0.08771718147 | L9: 0.09424560168 | N9: 51105.28288 | O9: 56899.9338 | P9: 54002.60834 | Q9: 0.2773340952 | R9: 0.04305626944
A10: Riverside-San Bernardino-Ontario MSA | B10: 1541.8 | C10: 1281.275 | D10: 175.225 | E10: 181.325 | F10: 356.55 | H10: 0.08848155821 | I10: 0.08647272408 | J10: 0.08618188078 | K10: 0.109390082 | L10: 0.09660507207 | N10: 52207.12891 | O10: 58324.44282 | P10: 55265.78586 | Q10: 0.278277497 | R10: 0.04313343027
A11: San Francisco-Redwood City-South San Francisco MD | B11: 1178.05 | C11: 1046.075 | D11: 147.7 | E11: 78.11666667 | F11: 225.8166667 | H11: 0.06760649867 | I11: 0.07059917258 | J11: 0.07264410781 | K11: 0.04712636744 | L11: 0.06118366388 | N11: 42623.61505 | O11: 36939.08642 | P11: 39781.35073 | Q11: 0.2158704363 | R11: 0.03802915731
A12: Oakland-Hayward-Berkeley MD | B12: 1185.25 | C12: 1010.025 | D12: 120.125 | E12: 112.0833333 | F12: 232.2083333 | H12: 0.06801969573 | I12: 0.06816617287 | J12: 0.05908174307 | K12: 0.06761784106 | L12: 0.06291544742 | N12: 41154.71337 | O12: 37984.63514 | P12: 39569.67426 | Q12: 0.2299035502 | R12: 0.03917692558
A13: Sacramento--Roseville--Arden-Arcade MSA | B13: 1018.508333 | C13: 777.075 | D13: 109.1583333 | E13: 100.6333333 | F13: 209.7916667 | H13: 0.05845064495 | I13: 0.05244447294 | J13: 0.05368794675 | K13: 0.06071026384 | L13: 0.05684178679 | N13: 31662.87854 | O13: 34317.7172 | P13: 32990.29787 | Q13: 0.2699760855 | R13: 0.04245445789
A14: San Jose-Sunnyvale-Santa Clara MSA | B14: 1146.841667 | C14: 1049.666667 | D14: 106.45 | E14: 83.60833333 | F14: 190.0583333 | H14: 0.06581549986 | I14: 0.07084157269 | J14: 0.05235589219 | K14: 0.05043939028 | L14: 0.05149515913 | N14: 42769.96194 | O14: 31089.73887 | P14: 36929.8504 | Q14: 0.1810654176 | R14: 0.03518245513
A15: Ventura County | B15: 311.7666667 | C15: 264.5666667 | D15: 38.30833333 | E15: 38.5 | F15: 76.80833333 | H15: 0.01789181506 | I15: 0.01785549579 | J15: 0.01884139944 | K15: 0.02322635135 | L15: 0.02081075467 | N15: 10780.09488 | O15: 12564.30583 | P15: 11672.20036 | Q15: 0.2903175003 | R15: 0.04411818203
A16: Fresno County | B16: 361.3916667 | C16: 286.5333333 | D16: 35.58333333 | E16: 38.56666667 | F16: 74.15 | H16: 0.02073971838 | I16: 0.01933801711 | J16: 0.01750114762 | K16: 0.02326657014 | L16: 0.02009049529 | N16: 11675.15379 | O16: 12129.45571 | P16: 11902.30475 | Q16: 0.258783155 | R16: 0.0415389882
A17: Santa Barbara County | B17: 187.7083333 | C17: 148.2083333 | D17: 28.5 | E17: 18.575 | F17: 47.075 | H17: 0.0107722959 | I17: 0.01000251961 | J17: 0.01401731261 | K17: 0.01120596042 | L17: 0.01275468733 | N17: 6038.931193 | O17: 7700.527684 | P17: 6869.729438 | Q17: 0.3176272139 | R17: 0.04635184327
A18: Kern County | B18: 273.6916667 | C18: 205.9916667 | D18: 27.51666667 | E18: 31.11666667 | F18: 58.63333333 | H18: 0.01570674869 | I18: 0.01390229307 | J18: 0.01353367434 | K18: 0.01877212033 | L18: 0.01588634804 | N18: 8393.384321 | O18: 9591.23965 | P18: 8992.311986 | Q18: 0.2846393463 | R18: 0.04365376586
A19: Monterey County | B19: 145.275 | C19: 110.7 | D19: 26.15833333 | E19: 16.76666667 | F19: 42.925 | H19: 0.008337111408 | I19: 0.007471097583 | J19: 0.01286559774 | K19: 0.01011502574 | L19: 0.01163026986 | N19: 4510.607926 | O19: 7021.670756 | P19: 5766.139341 | Q19: 0.3877597109 | R19: 0.05208797959
A20: Sonoma County | B20: 209.3833333 | C20: 179.7833333 | D20: 25.775 | E20: 24.25833333 | F20: 50.03333333 | H20: 0.0120161912 | I20: 0.01213350341 | J20: 0.01267706079 | K20: 0.01463461229 | L20: 0.0135562299 | N20: 7325.493481 | O20: 8184.451799 | P20: 7754.97264 | Q20: 0.2782979512 | R20: 0.04313510322
A21: San Joaquin County | B21: 246.5583333 | C21: 201.6916667 | D21: 22.61666667 | E21: 26.13333333 | F21: 48.75 | H21: 0.01414960794 | I21: 0.01361208784 | J21: 0.01112368024 | K21: 0.01576576577 | L21: 0.01320851848 | N21: 8218.175522 | O21: 7974.524155 | P21: 8096.349838 | Q21: 0.2417055737 | R21: 0.04014221297
A22: San Luis Obispo County | B22: 119.9 | C22: 95.45833333 | D22: 19.89166667 | E22: 14.03333333 | F22: 33.925 | H22: 0.006880878732 | I22: 0.006442443753 | J22: 0.009783428422 | K22: 0.008466055341 | L22: 0.009191774141 | N22: 3889.567434 | O22: 5549.450912 | P22: 4719.509173 | Q22: 0.3553906591 | R22: 0.04944051512
A23: Stanislaus County | B23: 181.1416667 | C23: 150.9166667 | D23: 19.24166667 | E23: 22.75833333 | F23: 42 | H23: 0.01039544489 | I23: 0.01018530392 | J23: 0.009463735327 | K23: 0.01372968951 | L23: 0.01137964669 | N23: 6149.285572 | O23: 6870.359272 | P23: 6509.822422 | Q23: 0.2782992822 | R23: 0.04313521207
A24: Solano County | B24: 143.7 | C24: 118.95 | D24: 16.125 | E24: 17.95 | F24: 34.075 | H24: 0.008246724553 | I24: 0.008027886698 | J24: 0.007930847924 | K24: 0.01082890927 | L24: 0.009232415736 | N24: 4846.764343 | O24: 5573.987909 | P24: 5210.376126 | Q24: 0.2864649012 | R24: 0.04380307798
A25: Marin County | B25: 116.875 | C25: 101.0416667 | D25: 16.06666667 | E25: 14.68333333 | F25: 30.75 | H25: 0.006707278581 | I25: 0.006819260629 | J25: 0.007902157519 | K25: 0.008858188546 | L25: 0.00833152704 | N25: 4117.067231 | O25: 5030.084467 | P25: 4573.575849 | Q25: 0.3043298969 | R25: 0.04526425583
A26: Santa Cruz County | B26: 104.2416667 | C26: 81.09166667 | D26: 14.575 | E26: 11.8 | F26: 26.375 | H26: 0.005982270786 | I26: 0.005472843314 | J26: 0.007168502853 | K26: 0.007118725869 | L26: 0.007146147177 | N26: 3304.179895 | O26: 4314.422043 | P26: 3809.300969 | Q26: 0.3252492036 | R26: 0.04697524574
A27: Napa County | B27: 75 | C27: 64.70833333 | D27: 13.81666667 | E27: 6.458333333 | F27: 20.275 | H27: 0.004304135988 | I27: 0.004367138869 | J27: 0.006795527576 | K27: 0.003896195302 | L27: 0.005493388967 | N27: 2636.620788 | O27: 3316.584148 | P27: 2976.602468 | Q27: 0.3133290406 | R27: 0.04600029571
A28: Tulare County | B28: 128.675 | C28: 95.7 | D28: 12.1 | E28: 16.16666667 | F28: 28.26666667 | H28: 0.007384462643 | I28: 0.006458753737 | J28: 0.005951209915 | K28: 0.009753056628 | L28: 0.007658682851 | N28: 3899.41444 | O28: 4623.860843 | P28: 4261.637642 | Q28: 0.2953674678 | R28: 0.04453121883
A29: Butte County | B29: 80.70833333 | C29: 64.15833333 | D29: 9.058333333 | E29: 10.71666667 | F29: 19.775 | H29: 0.00463172856 | I29: 0.004330019594 | J29: 0.004455210178 | K29: 0.006465170528 | L29: 0.005357916983 | N29: 2614.21036 | O29: 3234.794157 | P29: 2924.502259 | Q29: 0.308221847 | R29: 0.04558257839
A30: Shasta County | B30: 68.39166667 | C30: 54.79166667 | D30: 6.841666667 | E30: 8.975 | F30: 15.81666667 | H30: 0.003924893783 | I30: 0.003697867104 | J30: 0.003364974752 | K30: 0.005414454633 | L30: 0.00428543044 | N30: 2232.553983 | O30: 2587.290059 | P30: 2409.922021 | Q30: 0.2886692015 | R30: 0.04398336769
A31: Merced County | B31: 70.34166667 | C31: 50.96666667 | D31: 6 | E31: 8.4 | F31: 14.4 | H31: 0.004036801319 | I31: 0.003439719423 | J31: 0.002951013181 | K31: 0.005067567568 | L31: 0.003901593151 | N31: 2076.699644 | O31: 2355.55175 | P31: 2216.125697 | Q31: 0.2825376063 | R31: 0.04348186456
A32: Humboldt County | B32: 50.8 | C32: 36.34166667 | D32: 5.633333333 | E32: 7.116666667 | F32: 12.75 | H32: 0.002915334776 | I32: 0.002452684173 | J32: 0.002770673487 | K32: 0.004293355856 | L32: 0.003454535602 | N32: 1480.785996 | O32: 2085.644779 | P32: 1783.215387 | Q32: 0.350836964 | R32: 0.04906806844
A33: Nevada County | B33: 32.99166667 | C33: 26.17083333 | D33: 5.2125 | E33: 3.965833333 | F33: 9.178333333 | H33: 0.001893341597 | I33: 0.001766258805 | J33: 0.002563692701 | K33: 0.002392515283 | L33: 0.00248681406 | N33: 1066.362857 | O33: 1501.391608 | P33: 1283.877232 | Q33: 0.3507084859 | R33: 0.04905756022
A34: Yuba City MSA | B34: 46.575 | C34: 34.24166667 | D34: 4.741666667 | E34: 5.883333333 | F34: 10.625 | H34: 0.002672868448 | I34: 0.002310956035 | J34: 0.002332120139 | K34: 0.003549308237 | L34: 0.002878779668 | N34: 1395.218908 | O34: 1738.037316 | P34: 1566.628112 | Q34: 0.3102944755 | R34: 0.04575209866
A35: Mendocino County | B35: 31.62083333 | C35: 24.44833333 | D35: 4.368333333 | E35: 4.810833333 | F35: 9.179166667 | H35: 0.001814671556 | I35: 0.001650007986 | J35: 0.002148501541 | K35: 0.002902288449 | L35: 0.002487039847 | N35: 996.1774716 | O35: 1501.527924 | P35: 1248.852698 | Q35: 0.3754516327 | R35: 0.05108130198
A36: Imperial County | B36: 53.04166667 | C36: 33.9 | D36: 4.366666667 | E36: 7.875 | F36: 12.24166667 | H36: 0.003043980618 | I36: 0.002287897092 | J36: 0.002147681815 | K36: 0.004750844595 | L36: 0.003316805751 | N36: 1381.297278 | O36: 2002.491621 | P36: 1691.89445 | Q36: 0.3611111111 | R36: 0.04990839084
A37: Madera County | B37: 39.21666667 | C37: 28.1 | D37: 3.758333333 | E37: 3.933333333 | F37: 7.691666667 | H37: 0.002250584884 | I37: 0.001896457471 | J37: 0.001848481868 | K37: 0.002372908623 | L37: 0.002084010693 | N37: 1144.96913 | O37: 1258.2027 | P37: 1201.585915 | Q37: 0.2737247924 | R37: 0.04276106459
A38: Mono County | B38: 7.638333333 | C38: 5.940833333 | D38: 3.720833333 | E38: 0.5808333333 | F38: 4.301666667 | H38: 0.0004383523385 | I38: 0.0004009444043 | J38: 0.001830038035 | K38: 0.0003504062098 | L38: 0.001165510639 | N38: 242.0665756 | O38: 703.6665587 | P38: 472.8665672 | Q38: 0.7240847244 | R38: =P38/($C38*1000) -> 0.07959599952
A39: Kings County | B39: 41.05833333 | C39: 25.925 | D39: 3.583333333 | E39: 4.241666667 | F39: 7.825 | H39: 0.002356275335 | I39: 0.001749667614 | J39: 0.00176241065 | K39: 0.002558920528 | L39: 0.002120136556 | N39: 1056.346075 | O39: 1280.013364 | P39: 1168.17972 | Q39: 0.3018322083 | R39: 0.0450599699
A40: Tuolumne County | B40: 18.21666667 | C40: 12.52416667 | D40: 2.504166667 | E40: 2.378333333 | F40: 4.8825 | H40: 0.001045426808 | I40: 0.0008452508701 | J40: 0.00123163814 | K40: 0.001434805341 | L40: 0.001322883928 | N40: 510.3126055 | O40: 798.6792653 | P40: 654.4959354 | Q40: 0.3898462972 | R40: 0.05225864146
A41: Mariposa County | B41: 5.500833333 | C41: 3.439166667 | D41: 1.796666667 | E41: 0.3958333333 | F41: 2.1925 | H41: 0.0003156844628 | I41: 0.0002321079473 | J41: 0.0008836645026 | K41: 0.0002387990669 | L41: 0.0005940446516 | N41: 140.1330842 | O41: 358.649112 | P41: 249.3910981 | Q41: 0.6375090865 | R41: 0.07251497885
A42: Siskiyou County | B42: 13.23666667 | C42: 9.1 | D42: 1.720833333 | E42: 1.6275 | F42: 3.348333333 | H42: 0.0007596321781 | I42: 0.0006141552666 | J42: 0.0008463669749 | K42: 0.0009818412162 | L42: 0.0009072107222 | N42: 370.7907148 | O42: 547.7203086 | P42: 459.2555117 | Q42: 0.3679487179 | R42: 0.05046763865
A43: Inyo County | B43: 7.703333333 | C43: 4.538333333 | D43: 1.693333333 | E43: 0.9375 | F43: 2.630833333 | H43: 0.0004420825897 | I43: 0.0003062902547 | J43: 0.0008328414978 | K43: 0.0005655767375 | L43: 0.0007128084246 | N43: 184.9199847 | O43: 430.351671 | P43: 307.6358279 | Q43: 0.5796915167 | R43: 0.06778608032
A44: Calaveras County | B44: 9.638333333 | C44: 6.939166667 | D44: 1.510833333 | E44: 1.215833333 | F44: 2.726666667 | H44: 0.0005531292982 | I44: 0.0004683215114 | J44: 0.0007430815135 | K44: 0.0007334901866 | L44: 0.0007387738882 | N44: 282.7448976 | O44: 446.0280861 | P44: 364.3864918 | Q44: 0.3929386334 | R44: 0.05251156361
A45: Tehama County | B45: 17.37333333 | C45: 13.21333333 | D45: 1.481666667 | E45: 2.109166667 | F45: 3.590833333 | H45: 0.0009970291897 | I45: 0.0008917624456 | J45: 0.0007287363106 | K45: 0.001272421976 | L45: 0.0009729146346 | N45: 538.3935507 | O45: 587.3884544 | P45: 562.8910025 | Q45: 0.2717583249 | R45: 0.04260022724
A46: Amador County | B46: 12.58 | C46: 7.454166667 | D46: 1.243333333 | E46: 1.51 | F46: 2.753333333 | H46: 0.0007219470763 | I46: 0.0005030786501 | J46: 0.0006115155092 | K46: 0.0009109555985 | L46: 0.0007459990607 | N46: 303.7292073 | O46: 450.3902189 | P46: 377.0597131 | Q46: 0.3693683622 | R46: 0.05058375134
A47: Lake County | B47: 15.99 | C47: 11.65333333 | D47: 1.191666667 | E47: 2.27 | F47: 3.461666667 | H47: 0.0009176417926 | I47: 0.0007864786857 | J47: 0.0005861040068 | K47: 0.001369449807 | L47: 0.0009379177053 | N47: 474.8294282 | O47: 566.2593733 | P47: 520.5444007 | Q47: 0.2970537757 | R47: 0.04466914194
A48: Plumas County | B48: 6.744166667 | C48: 4.209166667 | D48: 0.9608333333 | E48: 0.5941666667 | F48: 1.555 | H48: 0.0003870374728 | I48: 0.0002840749314 | J48: 0.0004725719719 | K48: 0.0003584499678 | L48: 0.0004213178715 | N48: 171.5076832 | O48: 254.366873 | P48: 212.9372781 | Q48: 0.3694317957 | R48: 0.05058893956
A49: Glenn County | B49: 7.2275 | C49: 5.07 | D49: 0.7633333333 | E49: 0.85 | F49: 1.613333333 | H49: 0.000414775238 | I49: 0.0003421722199 | J49: 0.0003754344547 | K49: 0.0005127895753 | L49: 0.0004371229363 | N49: 206.5833982 | O49: 263.9090387 | P49: 235.2462185 | Q49: 0.3182117028 | R49: 0.04639964861
A50: Lassen County | B50: 9.409166667 | C50: 3.334166667 | D50: 0.6041666667 | E50: 0.8725 | F50: 1.476666667 | H50: 0.0005399777715 | I50: 0.0002250215404 | J50: 0.0002971506328 | K50: 0.000526363417 | L50: 0.0004000939272 | N50: 135.8547298 | O50: 241.5531077 | P50: 188.7039188 | Q50: 0.4428892777 | R50: 0.05659702638
A51: Colusa County | B51: 6.555833333 | C51: 4.369166667 | D51: 0.5825 | E51: 0.5791666667 | F51: 1.161666667 | H51: 0.0003762293091 | I51: 0.0002948732658 | J51: 0.0002864941963 | K51: 0.00034940074 | L51: 0.0003147465771 | N51: 178.0270804 | O51: 190.0254132 | P51: 184.0262468 | Q51: 0.2658783139 | R51: 0.04211930119
A53: Source: Sacramento Bee analysis of California Employment Development Department annual 2019 data. Based on Economic Policy Institute analysis of Bureau of Labor Statistics Current Employment annual 2019 data
